{"text_format":"3","workbook":"xlsx","n_sheets":3,"sheets":["Tehtävät","Kuukausinäkymä","Viikkonäkymä"],"not_rendered":{"images":4,"defined_names":16},"read":"whole","date_system":"1900"}

{"sheet":"Tehtävät","index":0,"n_rows":15,"n_cols":3,"rows_kept":15}
[null,"KUUKAUSINÄKYMÄ","VIIKKONÄKYMÄ"]
[null," TEHTÄVÄT"]
[null,"KUVAUS","MÄÄRÄPÄIVÄ"]
[null,"Tehtävä 1",{"$f":"TODAY()","v":"2017-11-16"}]
[null,"Tehtävä 2",{"$f":"TODAY()+15","v":"2017-12-01"}]
[null,"Tehtävä 3",{"$f":"TODAY()+30","v":"2017-12-16"}]
[null,"Tehtävä 4",{"$f":"TODAY()+45","v":"2017-12-31"}]
[null,"Tehtävä 5",{"$f":"TODAY()+60","v":"2018-01-15"}]
[null,"Tehtävä 6",{"$f":"TODAY()+75","v":"2018-01-30"}]
[null,"Tehtävä 7",{"$f":"TODAY()+90","v":"2018-02-14"}]
[null,"Tehtävä 8",{"$f":"TODAY()+105","v":"2018-03-01"}]
[null,"Tehtävä 9",{"$f":"TODAY()+115","v":"2018-03-11"}]
[null,"Tehtävä 10",{"$f":"TODAY()+130","v":"2018-03-26"}]
[null,"Tehtävä 11",{"$f":"TODAY()+145","v":"2018-04-10"}]
[null,"Tehtävä 12",{"$f":"TODAY()+160","v":"2018-04-25"}]

{"sheet":"Kuukausinäkymä","index":1,"n_rows":17,"n_cols":8,"rows_kept":17,"merged":[[3,1,3,7]]}
[null,"TEHTÄVÄT","VIIKKONÄKYMÄ"]
[null,"Valitse kuukausi:","Anna vuosi:"]
[null,"Syyskuu",{"$f":"YEAR(TODAY())","v":2017}]
[null," KUUKAUSINÄKYMÄ"]
[null,"MAANANTAI","TIISTAI","KESKIVIIKKO","TORSTAI","PERJANTAI","LAUANTAI","SUNNUNTAI"]
[null,{"$f":"IF(WEEKDAY(DATEVALUE(\" 1\"&KkKuuk&KkVuosi)-1)=COLUMN(A$2),1,IF(LEN(A6)>0,A6+1,\"\"))","v":""},"","","",1,2,3]
[null,{"$f":"IF(LEN(B6)=0,\"\",IF(COUNTIF(Tehtävät[MÄÄRÄPÄIVÄ],DATE(KkVuosi,KkKuukNum,B6))>0,\"Tehtävä erääntyy!\",\"\"))","v":""},{"$f":"IF(LEN(C6)=0,\"\",IF(COUNTIF(Tehtävät[MÄÄRÄPÄIVÄ],DATE(KkVuosi,KkKuukNum,C6))>0,\"Tehtävä erääntyy!\",\"\"))","v":""},{"$f":"IF(LEN(D6)=0,\"\",IF(COUNTIF(Tehtävät[MÄÄRÄPÄIVÄ],DATE(KkVuosi,KkKuukNum,D6))>0,\"Tehtävä erääntyy!\",\"\"))","v":""},{"$f":"IF(LEN(E6)=0,\"\",IF(COUNTIF(Tehtävät[MÄÄRÄPÄIVÄ],DATE(KkVuosi,KkKuukNum,E6))>0,\"Tehtävä erääntyy!\",\"\"))","v":""},{"$f":"IF(LEN(F6)=0,\"\",IF(COUNTIF(Tehtävät[MÄÄRÄPÄIVÄ],DATE(KkVuosi,KkKuukNum,F6))>0,\"Tehtävä erääntyy!\",\"\"))","v":""},{"$f":"IF(LEN(G6)=0,\"\",IF(COUNTIF(Tehtävät[MÄÄRÄPÄIVÄ],DATE(KkVuosi,KkKuukNum,G6))>0,\"Tehtävä erääntyy!\",\"\"))","v":""},{"$f":"IF(LEN(H6)=0,\"\",IF(COUNTIF(Tehtävät[MÄÄRÄPÄIVÄ],DATE(KkVuosi,KkKuukNum,H6))>0,\"Tehtävä erääntyy!\",\"\"))","v":""}]
[null,{"$f":"IF(LEN(H6)>0,IF(H6=DAY(DATE(KkVuosi,KkKuukNum+1,0)),\"\",H6+1),\"\")","v":4},{"$f":"IF(LEN(B8)>0,IF(B8=DAY(DATE(KkVuosi,KkKuukNum+1,0)),\"\",B8+1),\"\")","v":5},6,7,8,9,10]
[null,{"$f":"IF(LEN(B8)=0,\"\",IF(COUNTIF(Tehtävät[MÄÄRÄPÄIVÄ],DATE(KkVuosi,KkKuukNum,B8))>0,\"Tehtävä erääntyy!\",\"\"))","v":""},{"$f":"IF(LEN(C8)=0,\"\",IF(COUNTIF(Tehtävät[MÄÄRÄPÄIVÄ],DATE(KkVuosi,KkKuukNum,C8))>0,\"Tehtävä erääntyy!\",\"\"))","v":""},{"$f":"IF(LEN(D8)=0,\"\",IF(COUNTIF(Tehtävät[MÄÄRÄPÄIVÄ],DATE(KkVuosi,KkKuukNum,D8))>0,\"Tehtävä erääntyy!\",\"\"))","v":""},{"$f":"IF(LEN(E8)=0,\"\",IF(COUNTIF(Tehtävät[MÄÄRÄPÄIVÄ],DATE(KkVuosi,KkKuukNum,E8))>0,\"Tehtävä erääntyy!\",\"\"))","v":""},{"$f":"IF(LEN(F8)=0,\"\",IF(COUNTIF(Tehtävät[MÄÄRÄPÄIVÄ],DATE(KkVuosi,KkKuukNum,F8))>0,\"Tehtävä erääntyy!\",\"\"))","v":""},{"$f":"IF(LEN(G8)=0,\"\",IF(COUNTIF(Tehtävät[MÄÄRÄPÄIVÄ],DATE(KkVuosi,KkKuukNum,G8))>0,\"Tehtävä erääntyy!\",\"\"))","v":""},{"$f":"IF(LEN(H8)=0,\"\",IF(COUNTIF(Tehtävät[MÄÄRÄPÄIVÄ],DATE(KkVuosi,KkKuukNum,H8))>0,\"Tehtävä erääntyy!\",\"\"))","v":""}]
[null,{"$f":"IF(LEN(H8)>0,IF(H8=DAY(DATE(KkVuosi,KkKuukNum+1,0)),\"\",H8+1),\"\")","v":11},{"$f":"IF(LEN(B10)>0,IF(B10=DAY(DATE(KkVuosi,KkKuukNum+1,0)),\"\",B10+1),\"\")","v":12},13,14,15,16,17]
[null,{"$f":"IF(LEN(B10)=0,\"\",IF(COUNTIF(Tehtävät[MÄÄRÄPÄIVÄ],DATE(KkVuosi,KkKuukNum,B10))>0,\"Tehtävä erääntyy!\",\"\"))","v":""},{"$f":"IF(LEN(C10)=0,\"\",IF(COUNTIF(Tehtävät[MÄÄRÄPÄIVÄ],DATE(KkVuosi,KkKuukNum,C10))>0,\"Tehtävä erääntyy!\",\"\"))","v":""},{"$f":"IF(LEN(D10)=0,\"\",IF(COUNTIF(Tehtävät[MÄÄRÄPÄIVÄ],DATE(KkVuosi,KkKuukNum,D10))>0,\"Tehtävä erääntyy!\",\"\"))","v":""},{"$f":"IF(LEN(E10)=0,\"\",IF(COUNTIF(Tehtävät[MÄÄRÄPÄIVÄ],DATE(KkVuosi,KkKuukNum,E10))>0,\"Tehtävä erääntyy!\",\"\"))","v":""},{"$f":"IF(LEN(F10)=0,\"\",IF(COUNTIF(Tehtävät[MÄÄRÄPÄIVÄ],DATE(KkVuosi,KkKuukNum,F10))>0,\"Tehtävä erääntyy!\",\"\"))","v":""},{"$f":"IF(LEN(G10)=0,\"\",IF(COUNTIF(Tehtävät[MÄÄRÄPÄIVÄ],DATE(KkVuosi,KkKuukNum,G10))>0,\"Tehtävä erääntyy!\",\"\"))","v":""},{"$f":"IF(LEN(H10)=0,\"\",IF(COUNTIF(Tehtävät[MÄÄRÄPÄIVÄ],DATE(KkVuosi,KkKuukNum,H10))>0,\"Tehtävä erääntyy!\",\"\"))","v":""}]
[null,{"$f":"IF(LEN(H10)>0,IF(H10=DAY(DATE(KkVuosi,KkKuukNum+1,0)),\"\",H10+1),\"\")","v":18},{"$f":"IF(LEN(B12)>0,IF(B12=DAY(DATE(KkVuosi,KkKuukNum+1,0)),\"\",B12+1),\"\")","v":19},20,21,22,23,24]
[null,{"$f":"IF(LEN(B12)=0,\"\",IF(COUNTIF(Tehtävät[MÄÄRÄPÄIVÄ],DATE(KkVuosi,KkKuukNum,B12))>0,\"Tehtävä erääntyy!\",\"\"))","v":""},{"$f":"IF(LEN(C12)=0,\"\",IF(COUNTIF(Tehtävät[MÄÄRÄPÄIVÄ],DATE(KkVuosi,KkKuukNum,C12))>0,\"Tehtävä erääntyy!\",\"\"))","v":""},{"$f":"IF(LEN(D12)=0,\"\",IF(COUNTIF(Tehtävät[MÄÄRÄPÄIVÄ],DATE(KkVuosi,KkKuukNum,D12))>0,\"Tehtävä erääntyy!\",\"\"))","v":""},{"$f":"IF(LEN(E12)=0,\"\",IF(COUNTIF(Tehtävät[MÄÄRÄPÄIVÄ],DATE(KkVuosi,KkKuukNum,E12))>0,\"Tehtävä erääntyy!\",\"\"))","v":""},{"$f":"IF(LEN(F12)=0,\"\",IF(COUNTIF(Tehtävät[MÄÄRÄPÄIVÄ],DATE(KkVuosi,KkKuukNum,F12))>0,\"Tehtävä erääntyy!\",\"\"))","v":""},{"$f":"IF(LEN(G12)=0,\"\",IF(COUNTIF(Tehtävät[MÄÄRÄPÄIVÄ],DATE(KkVuosi,KkKuukNum,G12))>0,\"Tehtävä erääntyy!\",\"\"))","v":""},{"$f":"IF(LEN(H12)=0,\"\",IF(COUNTIF(Tehtävät[MÄÄRÄPÄIVÄ],DATE(KkVuosi,KkKuukNum,H12))>0,\"Tehtävä erääntyy!\",\"\"))","v":""}]
[null,{"$f":"IF(LEN(H12)>0,IF(H12=DAY(DATE(KkVuosi,KkKuukNum+1,0)),\"\",H12+1),\"\")","v":25},{"$f":"IF(LEN(B14)>0,IF(B14=DAY(DATE(KkVuosi,KkKuukNum+1,0)),\"\",B14+1),\"\")","v":26},27,28,29,30,""]
[null,{"$f":"IF(LEN(B14)=0,\"\",IF(COUNTIF(Tehtävät[MÄÄRÄPÄIVÄ],DATE(KkVuosi,KkKuukNum,B14))>0,\"Tehtävä erääntyy!\",\"\"))","v":""},{"$f":"IF(LEN(C14)=0,\"\",IF(COUNTIF(Tehtävät[MÄÄRÄPÄIVÄ],DATE(KkVuosi,KkKuukNum,C14))>0,\"Tehtävä erääntyy!\",\"\"))","v":""},{"$f":"IF(LEN(D14)=0,\"\",IF(COUNTIF(Tehtävät[MÄÄRÄPÄIVÄ],DATE(KkVuosi,KkKuukNum,D14))>0,\"Tehtävä erääntyy!\",\"\"))","v":""},{"$f":"IF(LEN(E14)=0,\"\",IF(COUNTIF(Tehtävät[MÄÄRÄPÄIVÄ],DATE(KkVuosi,KkKuukNum,E14))>0,\"Tehtävä erääntyy!\",\"\"))","v":""},{"$f":"IF(LEN(F14)=0,\"\",IF(COUNTIF(Tehtävät[MÄÄRÄPÄIVÄ],DATE(KkVuosi,KkKuukNum,F14))>0,\"Tehtävä erääntyy!\",\"\"))","v":""},{"$f":"IF(LEN(G14)=0,\"\",IF(COUNTIF(Tehtävät[MÄÄRÄPÄIVÄ],DATE(KkVuosi,KkKuukNum,G14))>0,\"Tehtävä erääntyy!\",\"\"))","v":""},{"$f":"IF(LEN(H14)=0,\"\",IF(COUNTIF(Tehtävät[MÄÄRÄPÄIVÄ],DATE(KkVuosi,KkKuukNum,H14))>0,\"Tehtävä erääntyy!\",\"\"))","v":""}]
[null,{"$f":"IF(LEN(H14)>0,IF(H14=DAY(DATE(KkVuosi,KkKuukNum+1,0)),\"\",H14+1),\"\")","v":""},{"$f":"IF(LEN(B16)>0,IF(B16=DAY(DATE(KkVuosi,KkKuukNum+1,0)),\"\",B16+1),\"\")","v":""},"","","","",""]
[null,{"$f":"IF(LEN(B16)=0,\"\",IF(COUNTIF(Tehtävät[MÄÄRÄPÄIVÄ],DATE(KkVuosi,KkKuukNum,B16))>0,\"Tehtävä erääntyy!\",\"\"))","v":""},{"$f":"IF(LEN(C16)=0,\"\",IF(COUNTIF(Tehtävät[MÄÄRÄPÄIVÄ],DATE(KkVuosi,KkKuukNum,C16))>0,\"Tehtävä erääntyy!\",\"\"))","v":""},{"$f":"IF(LEN(D16)=0,\"\",IF(COUNTIF(Tehtävät[MÄÄRÄPÄIVÄ],DATE(KkVuosi,KkKuukNum,D16))>0,\"Tehtävä erääntyy!\",\"\"))","v":""},{"$f":"IF(LEN(E16)=0,\"\",IF(COUNTIF(Tehtävät[MÄÄRÄPÄIVÄ],DATE(KkVuosi,KkKuukNum,E16))>0,\"Tehtävä erääntyy!\",\"\"))","v":""},{"$f":"IF(LEN(F16)=0,\"\",IF(COUNTIF(Tehtävät[MÄÄRÄPÄIVÄ],DATE(KkVuosi,KkKuukNum,F16))>0,\"Tehtävä erääntyy!\",\"\"))","v":""},{"$f":"IF(LEN(G16)=0,\"\",IF(COUNTIF(Tehtävät[MÄÄRÄPÄIVÄ],DATE(KkVuosi,KkKuukNum,G16))>0,\"Tehtävä erääntyy!\",\"\"))","v":""},{"$f":"IF(LEN(H16)=0,\"\",IF(COUNTIF(Tehtävät[MÄÄRÄPÄIVÄ],DATE(KkVuosi,KkKuukNum,H16))>0,\"Tehtävä erääntyy!\",\"\"))","v":""}]

{"sheet":"Viikkonäkymä","index":2,"n_rows":17,"n_cols":8,"rows_kept":17,"merged":[[3,1,3,7]]}
[null,"TEHTÄVÄT","KUUKAUSINÄKYMÄ"]
[null,"Valitse kuukausi:","Anna vuosi:","Valitse viikko #:"]
[null,"Syyskuu",{"$f":"YEAR(TODAY())","v":2017},"Viikko 1"]
[null," VIIKKONÄKYMÄ"]
[null,{"$f":"IF(WEEKDAY(DATEVALUE(\" 1\"&VkKk&WkVuosi)-1)=COLUMN(A$2),1,IF(LEN(A5)>0,A5+1,\"\"))","v":""},"","","",1,2,3]
[null,{"$f":"IF(LEN(H5)>0,IF(H5=KkViimPvä_Viikko,\"\",H5+1),\"\")","v":4},{"$f":"IF(LEN(B6)>0,IF(B6=KkViimPvä_Viikko,\"\",B6+1),\"\")","v":5},6,7,8,9,10]
[null,{"$f":"IF(LEN(H6)>0,IF(H6=KkViimPvä_Viikko,\"\",H6+1),\"\")","v":11},12,13,14,15,16,17]
[null,{"$f":"IF(LEN(H7)>0,IF(H7=KkViimPvä_Viikko,\"\",H7+1),\"\")","v":18},19,20,21,22,23,24]
[null,{"$f":"IF(LEN(H8)>0,IF(H8=KkViimPvä_Viikko,\"\",H8+1),\"\")","v":25},26,27,28,29,30,""]
[null,{"$f":"IF(LEN(H9)>0,IF(H9=KkViimPvä_Viikko,\"\",H9+1),\"\")","v":""},"","","","","",""]
[null,"MAANANTAI","TIISTAI","KESKIVIIKKO","TORSTAI","PERJANTAI","LAUANTAI","SUNNUNTAI"]
[null,{"$f":"IF(B14=\"\",IF(AND(ISNUMBER(A12),A12<KkViimPvä_Viikko),A12+1,\"\"),IF(B14<=7,\"\",INDEX(VkKkNäkymä,VkViikko,COLUMN(A$2))-7))","v":""},"","","","","",""]
[null,{"$f":"IF(LEN(B12)=0,\"\",IF(COUNTIF(Tehtävät[MÄÄRÄPÄIVÄ],DATE(WkVuosi,VkKkNum,B12))>0,\"Tehtävä erääntyy!\",\"\"))","v":""},{"$f":"IF(LEN(C12)=0,\"\",IF(COUNTIF(Tehtävät[MÄÄRÄPÄIVÄ],DATE(WkVuosi,VkKkNum,C12))>0,\"Tehtävä erääntyy!\",\"\"))","v":""},{"$f":"IF(LEN(D12)=0,\"\",IF(COUNTIF(Tehtävät[MÄÄRÄPÄIVÄ],DATE(WkVuosi,VkKkNum,D12))>0,\"Tehtävä erääntyy!\",\"\"))","v":""},{"$f":"IF(LEN(E12)=0,\"\",IF(COUNTIF(Tehtävät[MÄÄRÄPÄIVÄ],DATE(WkVuosi,VkKkNum,E12))>0,\"Tehtävä erääntyy!\",\"\"))","v":""},{"$f":"IF(LEN(F12)=0,\"\",IF(COUNTIF(Tehtävät[MÄÄRÄPÄIVÄ],DATE(WkVuosi,VkKkNum,F12))>0,\"Tehtävä erääntyy!\",\"\"))","v":""},{"$f":"IF(LEN(G12)=0,\"\",IF(COUNTIF(Tehtävät[MÄÄRÄPÄIVÄ],DATE(WkVuosi,VkKkNum,G12))>0,\"Tehtävä erääntyy!\",\"\"))","v":""},{"$f":"IF(LEN(H12)=0,\"\",IF(COUNTIF(Tehtävät[MÄÄRÄPÄIVÄ],DATE(WkVuosi,VkKkNum,H12))>0,\"Tehtävä erääntyy!\",\"\"))","v":""}]
[null,{"$f":"INDEX(VkKkNäkymä,VkViikko,COLUMN(A$2))","v":""},"","","",1,2,3]
[null,{"$f":"IF(LEN(B14)=0,\"\",IF(COUNTIF(Tehtävät[MÄÄRÄPÄIVÄ],DATE(WkVuosi,VkKkNum,B14))>0,\"Tehtävä erääntyy!\",\"\"))","v":""},{"$f":"IF(LEN(C14)=0,\"\",IF(COUNTIF(Tehtävät[MÄÄRÄPÄIVÄ],DATE(WkVuosi,VkKkNum,C14))>0,\"Tehtävä erääntyy!\",\"\"))","v":""},{"$f":"IF(LEN(D14)=0,\"\",IF(COUNTIF(Tehtävät[MÄÄRÄPÄIVÄ],DATE(WkVuosi,VkKkNum,D14))>0,\"Tehtävä erääntyy!\",\"\"))","v":""},{"$f":"IF(LEN(E14)=0,\"\",IF(COUNTIF(Tehtävät[MÄÄRÄPÄIVÄ],DATE(WkVuosi,VkKkNum,E14))>0,\"Tehtävä erääntyy!\",\"\"))","v":""},{"$f":"IF(LEN(F14)=0,\"\",IF(COUNTIF(Tehtävät[MÄÄRÄPÄIVÄ],DATE(WkVuosi,VkKkNum,F14))>0,\"Tehtävä erääntyy!\",\"\"))","v":""},{"$f":"IF(LEN(G14)=0,\"\",IF(COUNTIF(Tehtävät[MÄÄRÄPÄIVÄ],DATE(WkVuosi,VkKkNum,G14))>0,\"Tehtävä erääntyy!\",\"\"))","v":""},{"$f":"IF(LEN(H14)=0,\"\",IF(COUNTIF(Tehtävät[MÄÄRÄPÄIVÄ],DATE(WkVuosi,VkKkNum,H14))>0,\"Tehtävä erääntyy!\",\"\"))","v":""}]
[null,{"$f":"IFERROR(IF(B14=\"\",IF(AND(ISNUMBER(A16),A16<KkViimPvä_Viikko),A16+1,$H$14+COLUMN(A$2)),IF(B14+7>KkViimPvä_Viikko,\"\",INDEX(VkKkNäkymä,VkViikko,COLUMN(A$2))+7)),\"\")","v":4},{"$f":"IFERROR(IF(C14=\"\",IF(AND(ISNUMBER(B16),B16<KkViimPvä_Viikko),B16+1,$H$14+COLUMN(B$2)),IF(C14+7>KkViimPvä_Viikko,\"\",INDEX(VkKkNäkymä,VkViikko,COLUMN(B$2))+7)),\"\")","v":5},{"$f":"IFERROR(IF(D14=\"\",IF(AND(ISNUMBER(C16),C16<KkViimPvä_Viikko),C16+1,$H$14+COLUMN(C$2)),IF(D14+7>KkViimPvä_Viikko,\"\",INDEX(VkKkNäkymä,VkViikko,COLUMN(C$2))+7)),\"\")","v":6},{"$f":"IFERROR(IF(E14=\"\",IF(AND(ISNUMBER(D16),D16<KkViimPvä_Viikko),D16+1,$H$14+COLUMN(D$2)),IF(E14+7>KkViimPvä_Viikko,\"\",INDEX(VkKkNäkymä,VkViikko,COLUMN(D$2))+7)),\"\")","v":7},{"$f":"IFERROR(IF(F14=\"\",IF(AND(ISNUMBER(E16),E16<KkViimPvä_Viikko),E16+1,$H$14+COLUMN(E$2)),IF(F14+7>KkViimPvä_Viikko,\"\",INDEX(VkKkNäkymä,VkViikko,COLUMN(E$2))+7)),\"\")","v":8},{"$f":"IFERROR(IF(G14=\"\",IF(AND(ISNUMBER(F16),F16<KkViimPvä_Viikko),F16+1,$H$14+COLUMN(F$2)),IF(G14+7>KkViimPvä_Viikko,\"\",INDEX(VkKkNäkymä,VkViikko,COLUMN(F$2))+7)),\"\")","v":9},{"$f":"IFERROR(IF(H14=\"\",IF(AND(ISNUMBER(G16),G16<KkViimPvä_Viikko),G16+1,$H$14+COLUMN(G$2)),IF(H14+7>KkViimPvä_Viikko,\"\",INDEX(VkKkNäkymä,VkViikko,COLUMN(G$2))+7)),\"\")","v":10}]
[null,{"$f":"IF(LEN(B16)=0,\"\",IF(COUNTIF(Tehtävät[MÄÄRÄPÄIVÄ],DATE(WkVuosi,VkKkNum,B16))>0,\"Tehtävä erääntyy!\",\"\"))","v":""},{"$f":"IF(LEN(C16)=0,\"\",IF(COUNTIF(Tehtävät[MÄÄRÄPÄIVÄ],DATE(WkVuosi,VkKkNum,C16))>0,\"Tehtävä erääntyy!\",\"\"))","v":""},{"$f":"IF(LEN(D16)=0,\"\",IF(COUNTIF(Tehtävät[MÄÄRÄPÄIVÄ],DATE(WkVuosi,VkKkNum,D16))>0,\"Tehtävä erääntyy!\",\"\"))","v":""},{"$f":"IF(LEN(E16)=0,\"\",IF(COUNTIF(Tehtävät[MÄÄRÄPÄIVÄ],DATE(WkVuosi,VkKkNum,E16))>0,\"Tehtävä erääntyy!\",\"\"))","v":""},{"$f":"IF(LEN(F16)=0,\"\",IF(COUNTIF(Tehtävät[MÄÄRÄPÄIVÄ],DATE(WkVuosi,VkKkNum,F16))>0,\"Tehtävä erääntyy!\",\"\"))","v":""},{"$f":"IF(LEN(G16)=0,\"\",IF(COUNTIF(Tehtävät[MÄÄRÄPÄIVÄ],DATE(WkVuosi,VkKkNum,G16))>0,\"Tehtävä erääntyy!\",\"\"))","v":""},{"$f":"IF(LEN(H16)=0,\"\",IF(COUNTIF(Tehtävät[MÄÄRÄPÄIVÄ],DATE(WkVuosi,VkKkNum,H16))>0,\"Tehtävä erääntyy!\",\"\"))","v":""}]